fUSD/lending_fUSD_20240115
["ID","MTS","AMOUNT","RATE_DAILY","PERIOD"]
[311689638,1705336240860,-500.0,0.00023288,2]
[311689640,1705336240870,-500.0,0.00023288,2]
[311689642,1705336240879,-500.0,0.00023288,2]
[311689644,1705336240888,-500.0,0.00023288,2]
[311689646,1705336240897,-500.0,0.00023288,2]
[311689648,1705336240906,-500.0,0.00023288,2]
[311689650,1705336240915,-500.0,0.00023288,2]
[311689652,1705336240925,-500.0,0.00023288,2]
[311689654,1705336240934,-437.9965222,0.00023288,2]
[311689656,1705336240944,-614.63478995,0.00023288,2]
[311689658,1705336240955,-499.99999999,0.00023288,2]
[311689660,1705336240965,-165.23,0.00023343,2]
[311689662,1705336240974,-159.26,0.00023587,2]
[311689664,1705336240984,-807.70287006,0.00023627,2]
[311689666,1705336240995,-156.62,0.00023636,2]
[311689668,1705336241004,-165.23,0.00023783,2]
[311689670,1705336241015,-161.5,0.0002398,2]
[311689672,1705336241024,-159.26,0.00024024,2]
[311689674,1705336241034,-165.23,0.00024224,2]
[311689677,1705336241043,-203.0,0.00024225,5]
[311689679,1705336241052,-163.54,0.00024326,2]
[311689681,1705336241062,-807.70287006,0.00024355,2]
[311689683,1705336241071,-409.61,0.0002446,2]
[311689685,1705336241081,-177.23,0.00024568,2]
[311689687,1705336241090,-968.0,0.00024625,2]
[311689689,1705336241099,-250.0,0.00024658,2]
[311689691,1705336241108,-500.0,0.000247,2]
[311689693,1705336241117,-374.60559964,0.00025,2]
[311689695,1705336241127,-505444.87458687,0.00025,2]
[311689697,1705336241136,-303.27668532,0.00025,2]
[311689699,1705336241145,-533.63137989,0.00025,2]
[311689701,1705336241154,-155.21222667,0.00025,2]
[311689703,1705336241164,-1070.18909292,0.00025,2]
[311689705,1705336241173,-1350.0,0.00025,3]
[311689707,1705336241183,-807.70287006,0.00025082,2]
[311689709,1705336241192,-167.32876715,0.00025357,2]
[311689711,1705336241201,-150.0,0.00025364,2]
[311689713,1705336241211,-150.0,0.00025401,2]
[311689715,1705336241220,-203.0,0.00025417,7]
[311689717,1705336241229,-150.0,0.00025442,2]
[311689719,1705336241239,-150.0,0.00025443,2]
[311689721,1705336241248,-150.0,0.00025447,2]
[311689723,1705336241258,-150.0,0.00025557,2]
[311689725,1705336241267,-1573.28144942,0.00025587,2]
[311689727,1705336241276,-329.07996645,0.00025596,4]
[311689729,1705336241286,-2967.75221858,0.00025596,2]
[311689731,1705336241295,-151.0,0.00025597,7]
[311689733,1705336241305,-206.362369,0.00025597,7]
[311689735,1705336241314,-151.0,0.00025597,7]
[311689737,1705336241324,-151.0,0.00025597,7]
[311689739,1705336241334,-168.83037,0.00025597,7]
[311689741,1705336241343,-151.0,0.00025597,2]
[311689743,1705336241353,-151.0,0.00025597,7]
[311689745,1705336241362,-300.84205522,0.00025597,7]
[311689747,1705336241371,-151.0,0.00025597,7]
[311689749,1705336241380,-151.0,0.00025597,7]
[311689751,1705336241389,-166.52,0.00025597,7]
[311689753,1705336241399,-151.0,0.00025597,7]
[311689755,1705336241409,-359.43239121,0.00025597,2]
[311689757,1705336241418,-200.0,0.00025598,2]
[311689759,1705336241428,-29523.0,0.000256,2]
[311689761,1705336241437,-151.0,0.000256,7]
[311689763,1705336241446,-807.70287006,0.00025809,2]
[311689765,1705336241456,-153.93,0.00025906,2]
[311689767,1705336241466,-5000.0,0.00026,2]
[311689769,1705336241475,-150.0,0.00026079,2]
[311689771,1705336241484,-158.09,0.00026313,2]
[311689773,1705336241495,-206.31698755,0.000264,2]
[311689775,1705336241505,-1787.75802531,0.000264,2]
[311689777,1705336241515,-1000.0,0.00026433,3]
[311689779,1705336241524,-210.14411542,0.00026474,3]
[311689781,1705336241534,-791.55859683,0.000265,5]
[311689783,1705336241544,-274.31255663,0.00026507,3]
[311689785,1705336241553,-217.82687944,0.00026507,3]
[311689787,1705336241563,-214.58555283,0.00026507,3]
[311689789,1705336241572,-1000.0,0.00026507,3]
[311689791,1705336241581,-1758.75126747,0.00026507,3]
[311689793,1705336241592,-557.92057026,0.00026507,3]
[311689795,1705336241601,-150.86032298,0.00026507,3]
[311689797,1705336241611,-1861.74582251,0.00026507,3]
[311689799,1705336241620,-175.41697727,0.00026507,3]
[311689801,1705336241630,-807.70287006,0.00026536,2]
[311689803,1705336241640,-1137.01116219,0.00026539,28]
[311689805,1705336241649,-5117.42,0.00026575,2]
[311689807,1705336241659,-203.0,0.0002661,9]
[311689809,1705336241669,-409.61,0.00026724,2]
[311689811,1705336241681,-151.45459113,0.00026848,2]
[311689813,1705336241690,-426.0,0.00026941,2]
[311689815,1705336241699,-976.679,0.00026941,2]
[311689817,1705336241709,-16323.12731819,0.00027,2]
[311689820,1705336241720,-1400.0,0.00027,3]
[311689822,1705336241730,-807.70287006,0.00027264,2]
[311689824,1705336241742,-20000.0,0.00027297,2]
[311689826,1705336241752,-177.23,0.00027298,2]
[311689828,1705336241762,-968.0,0.00027361,2]
[311689830,1705336241771,-202.64747312,0.00027397,5]
[311689832,1705336241781,-250.0,0.00027397,2]
[311689834,1705336241791,-600.5,0.00027397,15]
[311689836,1705336241801,-2500.0,0.00027397,4]
[311689838,1705336241810,-197754.0,0.00027397,4]
[311689840,1705336241819,-250.0,0.000274,2]
[311689842,1705336241829,-4000.0,0.000274,2]
[311689844,1705336241839,-158.09,0.00027628,2]
[311689846,1705336241848,-163.04,0.0002766,2]
[311689848,1705336241857,-7999.99,0.00027737,6]
[311689850,1705336241866,-203.0,0.00027802,11]
[311689852,1705336241876,-214.0,0.00027836,2]
[311689854,1705336241885,-807.70287006,0.00027991,2]
[311689856,1705336241894,-1375.37613911,0.00028,2]
[311689858,1705336241904,-200.0,0.00028107,3]
[311689860,1705336241913,-1423.0,0.00028233,5]
[311689862,1705336241923,-162.54209167,0.0002825,2]
[311689864,1705336241933,-1103.18869887,0.0002832,2]
[311689866,1705336241942,-286.65578696,0.00028395,2]
[311689868,1705336241951,-163.33117129,0.00028413,2]
[311689870,1705336241961,-163.33117129,0.00028419,2]
[311689872,1705336241970,-845.04371435,0.00028458,2]
[311689874,1705336241979,-160.80061286,0.00028459,2]
[311689876,1705336241990,-367.30400215,0.00028495,2]
[311689878,1705336242000,-162.54209167,0.00028507,2]
[311689881,1705336242010,-367.30400215,0.00028516,2]
[311689883,1705336242019,-286.65578696,0.00028522,2]
[311689884,1705336242029,-1103.18869887,0.00028525,2]
[311689887,1705336242039,-157.46077969,0.00028563,2]
[311689889,1705336242049,-152.82548757,0.0002857,2]
[311689891,1705336242058,-154.6230515,0.00028581,2]
[311689893,1705336242068,-163.04,0.00028582,2]
[311689895,1705336242077,-286.65578696,0.00028608,2]
[311689897,1705336242087,-1103.18869887,0.00028611,2]
[311689899,1705336242097,-163.33117129,0.00028644,2]
[311689901,1705336242108,-151.07627181,0.00028671,2]
[311689903,1705336242118,-164.16,0.00028714,2]
[311689905,1705336242127,-807.70287006,0.00028718,2]
[311689907,1705336242136,-158.7240825,0.00028743,2]
[311689909,1705336242146,-158.48101384,0.00028746,2]
[311689911,1705336242156,-157.41746226,0.00028746,2]
[311689913,1705336242165,-367.30400215,0.00028753,2]
[311689915,1705336242175,-1000.0,0.00028767,2]
[311689917,1705336242184,-1000.0,0.00028767,2]
[311689919,1705336242194,-1000.0,0.00028767,2]
[311689921,1705336242204,-1000.0,0.00028767,2]
[311689923,1705336242213,-797.5070382,0.00028767,2]
[311689926,1705336242223,-151.0,0.00028767,7]
[311689928,1705336242233,-151.0,0.00028767,7]
[311689930,1705336242246,-845.04371435,0.00028784,2]
[311689932,1705336242255,-4000.0,0.000288,2]
[311689934,1705336242264,-750.0,0.000288,2]
[311689936,1705336242273,-163.33117129,0.00028808,2]
[311689938,1705336242283,-162.54209167,0.00028847,2]
[311689955,1705336242497,-162.54209167,0.00028854,2]
[311689958,1705336242507,-163.118548,0.00028858,7]
[311689961,1705336242517,-151.0,0.00028858,2]
[311689964,1705336242528,-286.65578696,0.00028908,2]
[311689966,1705336242539,-158.09,0.00028944,2]
[311689968,1705336242548,-151.0,0.00028944,7]
[311689970,1705336242559,-255.760609,0.00028944,7]
[311689972,1705336242569,-286.65578696,0.00028974,2]
[311689974,1705336242579,-163.33117129,0.00028977,2]
[311689976,1705336242590,-409.61,0.00028988,2]
[311689978,1705336242601,-183.43059016,0.00028991,2]
[311689980,1705336242610,-203.0,0.00028995,12]
[311689982,1705336242620,-10075.76585429,0.00029,2]
[311689984,1705336242630,-151.0,0.00029,7]
[311689986,1705336242641,-1450.0,0.00029,3]
[311689988,1705336242651,-151.0,0.00029,7]
[311689990,1705336242661,-159.03568202,0.00029025,2]
[311689992,1705336242671,-160.80061286,0.00029049,2]
[311689994,1705336242680,-845.04371435,0.00029097,2]
[311689996,1705336242690,-158.48101384,0.00029109,2]
[311689999,1705336242701,-163.33117129,0.00029118,2]
[311690001,1705336242711,-401.46,0.00029127,2]
[311690003,1705336242721,-166.36040672,0.00029245,2]
[311690005,1705336242730,-166.6144594,0.00029249,2]
[311690007,1705336242741,-157.41746226,0.00029283,2]
[311690009,1705336242750,-286.65578696,0.00029324,2]
[311690011,1705336242760,-156.43690265,0.00029332,2]
[311690013,1705336242770,-162.54209167,0.0002934,2]
[311690015,1705336242779,-1103.18869887,0.00029349,2]
[311690016,1705336242789,-158.48101384,0.00029397,2]
[311690018,1705336242799,-160.01800292,0.00029418,2]
[311690021,1705336242809,-162.54209167,0.00029425,2]
[311690023,1705336242819,-166.36040672,0.00029442,2]
[311690025,1705336242829,-807.70287006,0.00029445,2]
[311690027,1705336242838,-3698.7951,0.00029448,7]
[311690029,1705336242848,-1000.0,0.0002945,2]
[311690031,1705336242857,-162.54209167,0.00029466,2]
[311690033,1705336242867,-151.07627181,0.00029478,2]
[311690035,1705336242876,-128255.0935,0.000295,3]
[311690037,1705336242885,-160.80061286,0.00029503,2]
[311690039,1705336242894,-163.04,0.00029504,2]
[311690041,1705336242903,-158.48101384,0.00029548,2]
[311690043,1705336242912,-181.25,0.00029563,2]
[311690045,1705336242921,-170.92757606,0.00029571,2]
[311690047,1705336242930,-163.33117129,0.00029578,2]
[311690049,1705336242940,-649.6619358,0.00029578,2]
[311690051,1705336242949,-1103.18869887,0.0002959,2]
[311690053,1705336242959,-160.01800292,0.00029607,2]
[311690055,1705336242968,-286.65578696,0.00029612,2]
[311690057,1705336242977,-157.41746226,0.00029613,2]
[311690059,1705336242986,-163.33117129,0.00029655,2]
[311690061,1705336242996,-158.48101384,0.00029682,2]
[311690063,1705336243005,-163.33117129,0.00029687,2]
[311690065,1705336243015,-163.33117129,0.00029708,2]
[311690067,1705336243024,-170.92757606,0.00029724,2]
[311690069,1705336243033,-367.30400215,0.00029737,2]
[311690071,1705336243043,-162.54209167,0.00029741,2]
[311690073,1705336243052,-367.30400215,0.0002976,2]
[311690075,1705336243061,-286.65578696,0.00029764,2]
[311690077,1705336243070,-286.65578696,0.00029766,2]
[311690079,1705336243080,-845.04371435,0.0002977,2]
[311690081,1705336243089,-162.54209167,0.00029784,2]
[311690083,1705336243098,-1103.18869887,0.00029809,2]
[311690085,1705336243107,-367.30400215,0.00029818,2]
[311690087,1705336243116,-151.07627181,0.00029839,2]
[311690089,1705336243125,-170.92757606,0.00029854,2]
[311690091,1705336243134,-157.46077969,0.00029877,2]
[311690093,1705336243144,-206.31698755,0.000299,2]
[311690095,1705336243153,-1787.75802531,0.000299,2]
[311690097,1705336243162,-163.33117129,0.00029972,2]
[311690099,1705336243171,-500.0,0.00029999,4]
[311690101,1705336243181,-500.0,0.00029999,4]
[311690103,1705336243190,-500.0,0.00029999,4]
[311690105,1705336243199,-527.1406095,0.00029999,4]
[311690107,1705336243209,-342.77613457,0.00029999,4]
[311690109,1705336243218,-556.245284,0.00029999,4]
[311690111,1705336243227,-569.34961496,0.00029999,4]
[311690113,1705336243236,-500.0,0.00029999,4]
[311690115,1705336243246,-100000.0,0.0003,2]
[311690117,1705336243255,-151.0,0.0003,7]
[311690119,1705336243264,-500000.0,0.0003,3]
[311690121,1705336243274,-724436.556486,0.0003,2]
[311690123,1705336243283,-291228.51230558,0.0003,2]
[311690125,1705336243292,-159.77229605,0.0003,4]
[311690127,1705336243302,-6898.43991637,0.0003,4]
[311690129,1705336243311,-308636.97302582,0.0003,4]
[311690131,1705336243320,-18994.0891544,0.0003,4]
[311690133,1705336243329,-530.21758314,0.0003,4]
[311690135,1705336243338,-155.18088894,0.0003,4]
[311690137,1705336243347,-809.440986,0.0003,4]
[311690139,1705336243356,-451.13406094,0.0003,4]
[311690141,1705336243366,-45231.20153907,0.0003,4]
[311690143,1705336243375,-8806.28564995,0.0003,4]
[311690145,1705336243384,-461.6883313,0.0003,4]
[311690147,1705336243393,-160.7375581,0.0003,4]
[311690149,1705336243402,-156.20800825,0.0003,4]
[311690151,1705336243411,-722.21551038,0.0003,4]
[311690153,1705336243421,-151.0,0.0003,7]
[311690155,1705336243431,-151.0,0.0003,7]
[311690157,1705336243440,-151.0,0.0003,7]
[311690159,1705336243450,-187.02378,0.0003,7]
[311690161,1705336243459,-152.26,0.0003,2]
[311690163,1705336243469,-152.26,0.0003,2]
[311690165,1705336243479,-152.26,0.0003,2]
[311690167,1705336243488,-152.26,0.0003,2]
[311690169,1705336243500,-152.26,0.0003,2]
[311690171,1705336243510,-152.26,0.0003,2]
[311690173,1705336243518,-152.26,0.0003,2]
[311690175,1705336243528,-152.26,0.0003,2]
[311690177,1705336243537,-152.26,0.0003,2]
[311690179,1705336243546,-152.26,0.0003,2]
[311690181,1705336243556,-152.26,0.0003,2]
[311690183,1705336243565,-157.72,0.0003,2]
[311690186,1705336243574,-157.72,0.0003,2]
[311690188,1705336243584,-216.407341,0.0003,2]
[311690190,1705336243593,-3000.0,0.0003,2]
[311690192,1705336243602,-3000.0,0.0003,2]
[311690194,1705336243611,-3000.0,0.0003,2]
[311690196,1705336243620,-3000.0,0.0003,2]
[311690198,1705336243629,-3000.0,0.0003,2]
[311690200,1705336243638,-3000.0,0.0003,2]
[311690202,1705336243648,-151.0,0.0003,7]
[311690204,1705336243657,-151.0,0.0003,7]
[311690206,1705336243666,-151.0,0.0003,7]
[311690207,1705336243678,-151.0,0.0003,7]
[311690211,1705336243700,-151.0,0.0003,7]
[311690214,1705336243718,-151.0,0.0003,7]
[311690217,1705336243737,-151.0,0.0003,7]
[311690220,1705336243757,-282.546626,0.0003,7]
[311690223,1705336243773,-1000.0,0.0003,2]
[311690226,1705336243790,-151.0,0.0003,7]
[311690229,1705336243809,-151.0,0.0003,7]
[311690232,1705336243825,-286.65578696,0.00030002,7]
[311690235,1705336243843,-162.54209167,0.00030006,7]
[311690236,1705336243860,-177.23,0.00030028,2]
[311690237,1705336243879,-845.04371435,0.00030028,7]
[311690238,1705336243898,-175.40720905,0.00030079,7]
[311690239,1705336243909,-401.46,0.00030086,2]
[311690242,1705336243925,-401.46,0.00030086,2]
[311690244,1705336243942,-410.97,0.00030086,2]
[311690247,1705336243954,-968.0,0.00030097,2]
[311690249,1705336243969,-163.0,0.000301,2]
[311690252,1705336243984,-151.0,0.00030115,120]
[311690255,1705336244001,-151.07627181,0.00030119,7]
[311690258,1705336244023,-1103.18869887,0.0003012,7]
[311690261,1705336244037,-367.30400215,0.00030133,7]
[311690263,1705336244053,-153.84,0.00030137,2]
[311690266,1705336244068,-164.16,0.0003015,2]
[311690269,1705336244083,-164.74477195,0.00030152,7]
[311690271,1705336244097,-807.70287006,0.00030173,2]
[311690274,1705336244112,-203.0,0.00030187,14]
[311690277,1705336244127,-151.07627181,0.00030213,7]
[311690279,1705336244142,-160.80061286,0.00030236,7]
[311690282,1705336244157,-162.54209167,0.00030243,7]
[311690285,1705336244172,-286.65578696,0.00030269,7]
[311690287,1705336244187,-286.65578696,0.00030299,7]
[311690290,1705336244203,-162.54209167,0.0003031,7]
[311690293,1705336244218,-150.08151809,0.00030316,12]
[311690296,1705336244233,-150.08151809,0.00030316,10]
[311690298,1705336244249,-150.08151809,0.00030316,12]
[311690301,1705336244264,-150.08151809,0.00030316,12]
[311690303,1705336244279,-150.08151809,0.00030316,9]
[311690306,1705336244293,-150.08151809,0.00030316,11]
[311690308,1705336244308,-150.08151809,0.00030316,12]
[311690311,1705336244323,-150.08151809,0.00030316,8]
[311690314,1705336244338,-150.08151809,0.00030316,8]
[311690317,1705336244353,-150.08151809,0.00030316,9]
[311690319,1705336244369,-150.08151809,0.00030316,11]
[311690322,1705336244384,-150.08151809,0.00030316,8]
[311690324,1705336244399,-150.08151809,0.00030316,11]
[311690327,1705336244415,-150.08151809,0.00030316,8]
[311690330,1705336244430,-150.08151809,0.00030316,8]
[311690333,1705336244446,-150.08151809,0.00030316,11]
[311690335,1705336244461,-150.08151809,0.00030316,10]
[311690338,1705336244476,-150.08151809,0.00030316,9]
[311690340,1705336244490,-150.08151809,0.00030316,11]
[311690343,1705336244506,-150.08151809,0.00030316,12]
[311690345,1705336244521,-150.08151809,0.00030316,9]
[311690348,1705336244537,-150.08151809,0.00030316,12]
[311690351,1705336244552,-150.08151809,0.00030316,8]
[311690353,1705336244567,-150.08151809,0.00030316,12]
[311690356,1705336244582,-150.08151809,0.00030316,8]
[311690359,1705336244597,-150.08151809,0.00030316,12]
[311690361,1705336244612,-150.08151809,0.00030316,10]
[311690364,1705336244628,-150.08151809,0.00030316,11]
[311690367,1705336244644,-150.08151809,0.00030316,11]
[311690369,1705336244658,-160.80061286,0.0003032,7]
[311690372,1705336244673,-367.30400215,0.00030389,7]
[311690375,1705336244691,-151.07627181,0.00030393,7]
[311690377,1705336244706,-152.82548757,0.00030399,7]
[311690380,1705336244720,-157.46077969,0.000304,7]
[311690382,1705336244735,-152.06853972,0.00030402,2]
[311690385,1705336244750,-1103.18869887,0.00030403,7]
[311690388,1705336244766,-163.04,0.00030426,2]
[311690390,1705336244782,-1103.18869887,0.00030431,7]
[311690391,1705336244797,-1000.0,0.00030439,7]
[311690392,1705336244812,-1103.18869887,0.00030442,7]
[311690393,1705336244828,-162.54209167,0.00030442,7]
[311690394,1705336244843,-845.04371435,0.00030449,7]
[311690395,1705336244859,-1000.0,0.00030466,7]
[311690397,1705336244874,-1103.18869887,0.00030482,7]
[311690400,1705336244889,-369.36,0.00030493,2]
[311690401,1705336244906,-73215.6493848,0.000305,2]
[311690402,1705336244921,-35000.0,0.000305,2]
[311690403,1705336244937,-1103.18869887,0.00030505,7]
[311690404,1705336244952,-162.54209167,0.00030505,7]
[311690405,1705336244968,-163.33117129,0.00030539,7]
[311690406,1705336244984,-162.54209167,0.0003054,7]
[311690407,1705336244999,-157.41746226,0.00030578,7]
[311690409,1705336245015,-17409.0,0.000306,5]
[311690410,1705336245030,-1103.18869887,0.00030624,7]
[311690412,1705336245045,-156.69891742,0.00030678,7]
[311690413,1705336245060,-162.54209167,0.00030679,7]
[311690414,1705336245076,-150.10483007,0.0003069,2]
[311690415,1705336245091,-200179.27168065,0.000307,2]
[311690416,1705336245107,-207.0,0.000307,120]
[311690417,1705336245122,-160.01800292,0.00030707,7]
[311690418,1705336245136,-167.29723868,0.00030718,7]
[311690419,1705336245151,-151.0,0.0003073,30]
[311690420,1705336245166,-151.07627181,0.00030737,7]
[311690423,1705336245181,-160.01800292,0.00030748,7]
[311690425,1705336245195,-157.46077969,0.00030751,7]
[311690426,1705336245210,-200.0,0.00030752,3]
[311690427,1705336245224,-800.0,0.00030752,5]
[311690428,1705336245239,-286.65578696,0.0003077,7]
[311690429,1705336245255,-162.54209167,0.00030785,7]
[311690431,1705336245271,-181.25,0.00030826,7]
[311690433,1705336245285,-156.69891742,0.00030828,7]
[311690436,1705336245300,-214.0,0.00030836,2]
[311690438,1705336245315,-6941.81657183,0.00030845,4]
[311690441,1705336245331,-163.33117129,0.00030847,7]
[311690443,1705336245345,-845.04371435,0.00030863,7]
[311690446,1705336245361,-157.46077969,0.00030878,7]
[311690448,1705336245375,-156.43690265,0.00030886,7]
[311690451,1705336245391,-367.30400215,0.0003089,7]
[311690454,1705336245406,-286.65578696,0.00030897,7]
[311690456,1705336245421,-807.70287006,0.000309,2]
[311690459,1705336245437,-286.65578696,0.00030913,7]
[311690460,1705336245452,-158.72749223,0.00030918,7]
[311690462,1705336245469,-157.46077969,0.0003092,7]
[311690465,1705336245485,-158.7240825,0.00030936,7]
[311690468,1705336245494,-157.41746226,0.00030946,7]
[311690470,1705336245504,-163.33117129,0.00030962,7]
[311690472,1705336245513,-200.0,0.00030987,3]
[311690474,1705336245523,-5229.783021,0.00030995,2]
[311690486,1705336245848,-155.25638679,0.00030997,4]
[311690487,1705336245882,-380.39836202,0.00030997,4]
[311690488,1705336245892,-1166.14321891,0.00030998,2]
[311690489,1705336245900,-2548.35015776,0.00030998,4]
[311690490,1705336245910,-4390.94071388,0.00030999,4]
[311690491,1705336245919,-243.7661136,0.00030999,4]
[311690492,1705336245929,-150.01,0.00030999,2]
[311690493,1705336245938,-3294.38484961,0.00030999,2]
[311690494,1705336245947,-100000.0,0.00031,2]
[311690495,1705336245957,-151.0,0.00031,7]
[311690496,1705336245966,-151.0,0.00031,7]
[311690497,1705336245976,-151.0,0.00031,7]
[311690498,1705336245985,-1558.86151813,0.00031,7]
[311690499,1705336245994,-2000.0,0.00031,2]
[311690500,1705336246006,-3058457.13056323,0.00031,5]
[311690502,1705336246016,-232041.05437348,0.00031,2]
[311690504,1705336246026,-244.1309898,0.00031,4]
[311690506,1705336246034,-2089.54841008,0.00031,4]
[311690509,1705336246043,-3416.38758488,0.00031,3]
[311690512,1705336246051,-309.18374779,0.00031,7]
[311690514,1705336246060,-357.55520178,0.00031,2]
[311690516,1705336246069,-608.0657442,0.00031,4]
[311690517,1705336246080,-155.98655266,0.00031,4]
[311690519,1705336246089,-269.54832361,0.00031,4]
[311690521,1705336246098,-550.0,0.00031,19]
[311690523,1705336246107,-151.0,0.00031,7]
[311690524,1705336246116,-1500.0,0.00031,3]
[311690525,1705336246125,-150.0,0.00031,3]
[311690526,1705336246134,-200.0,0.00031,2]
[311690527,1705336246143,-151.0,0.00031,7]
[311690528,1705336246152,-300.0,0.00031,3]
[311690529,1705336246161,-151.0,0.00031,7]
[311690530,1705336246171,-1000.0,0.00031,3]
[311690531,1705336246180,-150.0,0.00031,3]
[311690532,1705336246189,-150.0,0.00031,3]
[311690533,1705336246198,-150.0,0.00031,3]
[311690534,1705336246208,-300.0,0.00031,2]
[311690535,1705336246218,-151.0,0.00031,7]
[311690536,1705336246227,-157.46077969,0.00031009,7]
[311690537,1705336246237,-845.04371435,0.00031016,7]
[311690538,1705336246247,-1103.18869887,0.00031038,7]
[311690539,1705336246258,-162.54209167,0.00031046,7]
[311690540,1705336246268,-153.84,0.0003105,2]
[311690541,1705336246278,-367.30400215,0.00031072,7]
[311690542,1705336246287,-1598.47,0.000311,3]
[311690543,1705336246297,-157.46077969,0.00031152,7]
[311690544,1705336246306,-367.30400215,0.00031176,7]
[311690545,1705336246315,-845.04371435,0.00031209,7]
[311690546,1705336246329,-158.48101384,0.0003121,7]
[311690547,1705336246338,-185.12039537,0.0003124,4]
[311690548,1705336246348,-455.76371195,0.0003124,2]
[311690549,1705336246357,-162.54209167,0.00031248,7]
[311690550,1705336246366,-409.61,0.00031252,2]
[311690551,1705336246376,-450.0,0.0003126,3]
[311690552,1705336246385,-163.33117129,0.00031281,7]
[311690553,1705336246394,-367.30400215,0.0003129,7]
[311690554,1705336246404,-156.69891742,0.00031337,7]
[311690555,1705336246413,-151.0,0.00031357,7]
[311690556,1705336246423,-286.65578696,0.00031374,7]
[311690557,1705336246432,-845.04371435,0.00031374,7]
[311690558,1705336246442,-203.0,0.0003138,16]
[311690559,1705336246451,-162.54209167,0.0003139,7]
[311690560,1705336246461,-885.57783437,0.000314,30]
[311690561,1705336246470,-543.63185548,0.00031456,15]
[311690562,1705336246480,-367.30400215,0.00031472,7]
[311690563,1705336246489,-286.65578696,0.00031475,7]
[311690564,1705336246501,-164.74477195,0.00031478,7]
[311690565,1705336246510,-163.33117129,0.00031479,7]
[311690566,1705336246519,-6156.503591,0.00031487,2]
[311690567,1705336246529,-7083.2241609,0.00031487,2]
[311690568,1705336246538,-5000.0,0.000315,5]
[311690569,1705336246548,-500.0,0.000315,2]
[311690570,1705336246558,-550.0,0.000315,20]
[311690571,1705336246569,-373.24,0.00031507,2]
[311690572,1705336246579,-200000.0,0.00031509,7]
[311690573,1705336246589,-200000.0,0.00031509,7]
[311690574,1705336246599,-1103.18869887,0.00031536,7]
[311690575,1705336246608,-8009.9447309,0.00031536,2]
[311690576,1705336246618,-163.33117129,0.00031549,7]
[311690577,1705336246627,-1103.18869887,0.00031553,7]
[311690578,1705336246637,-447.33442274,0.00031555,2]
[311690579,1705336246647,-251.14817734,0.00031555,4]
[311690580,1705336246657,-201.76398559,0.00031555,4]
[311690581,1705336246667,-182.24845878,0.00031555,4]
[311690582,1705336246677,-430.16577441,0.00031555,4]
[311690583,1705336246688,-363.01831739,0.00031555,4]
[311690584,1705336246697,-334.19307759,0.00031556,4]
[311690585,1705336246707,-46304.27660581,0.00031558,7]
[311690586,1705336246717,-45918.71280968,0.00031558,7]
[311690587,1705336246726,-15967.46546841,0.00031558,6]
[311690588,1705336246736,-9630.7613093,0.00031558,6]
[311690589,1705336246745,-19062.35083989,0.00031558,7]
[311690590,1705336246757,-18606.61724578,0.00031558,7]
[311690591,1705336246767,-151.07627181,0.00031582,7]
[311690592,1705336246777,-164.16,0.00031586,2]
[311690593,1705336246787,-158.48101384,0.00031589,7]
[311690594,1705336246797,-157.46077969,0.00031606,7]
[311690595,1705336246807,-170.62,0.00031644,2]
[311690596,1705336246817,-1103.18869887,0.00031684,7]
[311690597,1705336246826,-157.41746226,0.00031708,7]
[311690598,1705336246836,-154.6230515,0.00031723,7]
[311690599,1705336246845,-157.46077969,0.00031732,7]
[311690600,1705336246854,-1103.18869887,0.00031733,7]
[311690601,1705336246864,-157.46077969,0.00031738,7]
[311690602,1705336246873,-166.6144594,0.00031767,7]
[311690603,1705336246883,-162.54209167,0.0003177,7]